[Event "Early-Titled-Tuesday-Blitz-August-29-2023"]
[Site "Chess.com"]
[Date "2023.08.29"]
[Round "6"]
[White "jk13"]
[Black "Shuvalov"]
[Result "1-0"]
[WhiteElo "2657"]
[BlackElo "2469"]
[TimeControl "180+1"]
[EndTime "9:07:25 PDT"]
[Termination "jk13 won by resignation"]

1. e4 {[%clk 0:02:57.3]} 1... e6 {[%clk 0:02:21.1]} 2. d4 {[%clk 0:02:56.1]}
2... d5 {[%clk 0:02:21.3]} 3. e5 {[%clk 0:02:55.6]} 3... c5 {[%clk 0:02:21.3]}
4. Nf3 {[%clk 0:02:56.5]} 4... Nc6 {[%clk 0:02:21.7]} 5. Bd3 {[%clk 0:02:57.2]}
5... cxd4 {[%clk 0:02:19.8]} 6. O-O {[%clk 0:02:57.7]} 6... f6 {[%clk 0:02:20]}
7. Bb5 {[%clk 0:02:56.8]} 7... Bd7 {[%clk 0:02:18.7]} 8. Nxd4 {[%clk 0:02:52.5]}
8... Nxd4 {[%clk 0:02:11]} 9. Bxd7+ {[%clk 0:02:52.5]} 9... Qxd7 {[%clk
0:02:11.9]} 10. Qxd4 {[%clk 0:02:52.7]} 10... fxe5 {[%clk 0:02:11.9]} 11. Qxe5
{[%clk 0:02:53.1]} 11... Nf6 {[%clk 0:02:12.4]} 12. Bf4 {[%clk 0:02:47.5]} 12...
Bc5 {[%clk 0:02:08.3]} 13. Nd2 {[%clk 0:02:38.9]} 13... O-O {[%clk 0:02:07.6]}
14. Bg3 {[%clk 0:02:33.7]} 14... Rae8 {[%clk 0:02:04.4]} 15. Rae1 {[%clk
0:02:31.8]} 15... Qa4 {[%clk 0:01:57.2]} 16. Nb3 {[%clk 0:02:27.1]} 16... Bb6
{[%clk 0:01:54.4]} 17. Re2 {[%clk 0:01:58.4]} 17... Ne4 {[%clk 0:01:41.7]} 18.
a3 {[%clk 0:01:54.6]} 18... Qc4 {[%clk 0:01:37.1]} 19. Rxe4 {[%clk 0:01:36.3]}
19... Qxe4 {[%clk 0:01:35.8]} 20. Qxe4 {[%clk 0:01:33.4]} 20... dxe4 {[%clk
0:01:36.7]} 21. Re1 {[%clk 0:01:33.9]} 21... e3 {[%clk 0:01:33.1]} 22. fxe3
{[%clk 0:01:34.8]} 22... Rd8 {[%clk 0:01:28.7]} 23. Be5 {[%clk 0:01:27.5]} 23...
Rf5 {[%clk 0:01:24.1]} 24. Bd4 {[%clk 0:01:24.4]} 24... e5 {[%clk 0:01:07.8]}
25. Bxb6 {[%clk 0:01:12.4]} 25... axb6 {[%clk 0:01:08.7]} 26. h3 {[%clk
0:01:09.1]} 26... Kf7 {[%clk 0:01:06.9]} 27. a4 {[%clk 0:00:46.5]} 27... Ra8
{[%clk 0:00:52.7]} 28. Ra1 {[%clk 0:00:45.2]} 28... Ke7 {[%clk 0:00:51.4]} 29.
Nd2 {[%clk 0:00:42.4]} 29... Rf6 {[%clk 0:00:40.1]} 30. Nc4 {[%clk 0:00:39.8]}
30... Rc6 {[%clk 0:00:36.4]} 31. b3 {[%clk 0:00:36.3]} 31... Ke6 {[%clk
0:00:35.7]} 32. Rd1 {[%clk 0:00:32.3]} 32... Rf8 {[%clk 0:00:29.1]} 33. Rd2
{[%clk 0:00:29.2]} 33... Ra8 {[%clk 0:00:24.8]} 34. Nb2 {[%clk 0:00:26.5]} 34...
Rc3 {[%clk 0:00:20.5]} 35. Kf2 {[%clk 0:00:25.3]} 35... b5 {[%clk 0:00:18.3]}
36. Nd1 {[%clk 0:00:14.6]} 36... Rc5 {[%clk 0:00:15.5]} 37. axb5 {[%clk
0:00:10.8]} 37... Rxb5 {[%clk 0:00:16.4]} 38. Ke2 {[%clk 0:00:10.6]} 38... Rd5
{[%clk 0:00:16.2]} 39. Rxd5 {[%clk 0:00:07.8]} 39... Kxd5 {[%clk 0:00:17.1]} 40.
Nc3+ {[%clk 0:00:08.3]} 40... Kc6 {[%clk 0:00:17.2]} 41. Ne4 {[%clk 0:00:08.9]}
41... Ra2 {[%clk 0:00:16.8]} 42. Kd3 {[%clk 0:00:09.4]} 42... Ra1 {[%clk
0:00:17]} 43. Ke2 {[%clk 0:00:09.4]} 43... Rc1 {[%clk 0:00:16.5]} 44. Kd3 {[%clk
0:00:08.2]} 44... Rg1 {[%clk 0:00:16.3]} 45. g4 {[%clk 0:00:08.8]} 45... Rh1
{[%clk 0:00:16.1]} 46. Nf2 {[%clk 0:00:09.2]} 46... Rh2 {[%clk 0:00:16.2]} 47.
Ke2 {[%clk 0:00:09.7]} 47... Kd5 {[%clk 0:00:15.3]} 48. Kf3 {[%clk 0:00:08.7]}
48... Rxf2+ {[%clk 0:00:12.2]} 49. Kxf2 {[%clk 0:00:09]} 49... Ke4 {[%clk
0:00:12.7]} 50. Ke2 {[%clk 0:00:09.1]} 50... b5 {[%clk 0:00:12.4]} 51. c4 {[%clk
0:00:08.3]} 51... b4 {[%clk 0:00:11.1]} 52. h4 {[%clk 0:00:06.9]} 52... g6
{[%clk 0:00:08.7]} 53. g5 {[%clk 0:00:06.2]} 53... Kf5 {[%clk 0:00:07.7]} 54.
Kd3 {[%clk 0:00:06.3]} 54... Ke6 {[%clk 0:00:05.2]} 55. Ke4 {[%clk 0:00:06.2]}
55... Kd6 {[%clk 0:00:05.6]} 56. c5+ {[%clk 0:00:06.3]} 56... Kxc5 {[%clk
0:00:04.1]} 57. Kxe5 {[%clk 0:00:06.9]} 57... Kc6 {[%clk 0:00:03.9]} 58. Ke6
{[%clk 0:00:06.8]} 58... Kc5 {[%clk 0:00:03.8]} 59. Kf6 {[%clk 0:00:05.2]} 59...
Kd5 {[%clk 0:00:04]} 60. Kg7 {[%clk 0:00:06]} 60... Ke4 {[%clk 0:00:04.3]} 61.
Kxh7 {[%clk 0:00:06.7]} 61... Kd3 {[%clk 0:00:04.8]} 62. Kxg6 {[%clk 0:00:06.6]}
62... Kc3 {[%clk 0:00:05.6]} 63. h5 {[%clk 0:00:07.4]} 63... Kxb3 {[%clk
0:00:06.2]} 64. h6 {[%clk 0:00:08.3]} 64... Kc4 {[%clk 0:00:06.5]} 65. h7 {[%clk
0:00:09.2]} 65... b3 {[%clk 0:00:07.2]} 66. h8=Q {[%clk 0:00:10.1]} 1-0

[Event "Early-Titled-Tuesday-Blitz-August-29-2023"]
[Site "Chess.com"]
[Date "2023.08.29"]
[Round "6"]
[White "Maluco_do_Natal_00"]
[Black "CraiggoryC"]
[Result "1-0"]
[WhiteElo "1935"]
[BlackElo "2184"]
[TimeControl "180+1"]
[EndTime "9:07:26 PDT"]
[Termination "Maluco_do_Natal_00 won by checkmate"]

1. e4 {[%clk 0:03:00.9]} 1... e6 {[%clk 0:02:57.4]} 2. d4 {[%clk 0:02:59.1]}
2... d5 {[%clk 0:02:57.4]} 3. Nc3 {[%clk 0:02:59.7]} 3... Bb4 {[%clk 0:02:57.2]}
4. e5 {[%clk 0:02:59.1]} 4... c5 {[%clk 0:02:55.8]} 5. a3 {[%clk 0:02:59.6]}
5... Bxc3+ {[%clk 0:02:52.8]} 6. bxc3 {[%clk 0:03:00.5]} 6... Ne7 {[%clk
0:02:53.4]} 7. Qg4 {[%clk 0:03:00.8]} 7... Qc7 {[%clk 0:02:54.1]} 8. Qxg7 {[%clk
0:02:58.3]} 8... Rg8 {[%clk 0:02:54.6]} 9. Qxh7 {[%clk 0:02:58.8]} 9... cxd4
{[%clk 0:02:55.2]} 10. Ne2 {[%clk 0:02:59.2]} 10... Nbc6 {[%clk 0:02:54.7]} 11.
f4 {[%clk 0:02:59]} 11... dxc3 {[%clk 0:02:55.3]} 12. Qd3 {[%clk 0:02:59.1]}
12... d4 {[%clk 0:02:56]} 13. Nxd4 {[%clk 0:02:53.8]} 13... Nxd4 {[%clk
0:02:56.9]} 14. Qxd4 {[%clk 0:02:51.4]} 14... Bd7 {[%clk 0:02:57.8]} 15. Be3
{[%clk 0:02:06.9]} 15... Nf5 {[%clk 0:02:55.5]} 16. Qc5 {[%clk 0:02:05.8]} 16...
Bc6 {[%clk 0:02:42.7]} 17. Rg1 {[%clk 0:01:58.5]} 17... O-O-O {[%clk 0:02:33.2]}
18. Qxa7 {[%clk 0:01:43.1]} 18... Rd5 {[%clk 0:01:50.6]} 19. Bb6 {[%clk
0:00:45.5]} 19... Qe7 {[%clk 0:01:29.3]} 20. Qa8+ {[%clk 0:00:20.2]} 20... Kd7
{[%clk 0:01:29.3]} 21. Qxg8 {[%clk 0:00:20.4]} 21... Ba4 {[%clk 0:01:29.4]} 22.
Bd3 {[%clk 0:00:14.9]} 22... Bb5 {[%clk 0:00:43.3]} 23. Rd1 {[%clk 0:00:13.2]}
23... Bxd3 {[%clk 0:00:42.6]} 24. Rxd3 {[%clk 0:00:12.7]} 24... Rxd3 {[%clk
0:00:42.7]} 25. cxd3 {[%clk 0:00:12.9]} 25... Kc6 {[%clk 0:00:43.6]} 26. Bf2
{[%clk 0:00:10.3]} 26... Qxa3 {[%clk 0:00:39.8]} 27. Qc8+ {[%clk 0:00:10.3]}
27... Kb5 {[%clk 0:00:39]} 28. Qc4+ {[%clk 0:00:10.2]} 28... Ka5 {[%clk
0:00:36.4]} 29. Qc5+ {[%clk 0:00:10.5]} 29... Qxc5 {[%clk 0:00:34.7]} 30. Bxc5
{[%clk 0:00:11]} 30... b5 {[%clk 0:00:31.2]} 31. Kd1 {[%clk 0:00:10.2]} 31... b4
{[%clk 0:00:31.5]} 32. Kc2 {[%clk 0:00:10.4]} 32... Kb5 {[%clk 0:00:31.5]} 33.
Bf2 {[%clk 0:00:09]} 33... Ne7 {[%clk 0:00:30.1]} 34. g4 {[%clk 0:00:08.9]}
34... Nd5 {[%clk 0:00:30.4]} 35. Rb1 {[%clk 0:00:08.1]} 35... Nxf4 {[%clk
0:00:27.8]} 36. h4 {[%clk 0:00:07.6]} 36... Ka4 {[%clk 0:00:15.3]} 37. Ra1+
{[%clk 0:00:07]} 37... Kb5 {[%clk 0:00:15.3]} 38. Ra8 {[%clk 0:00:06.8]} 38...
Nd5 {[%clk 0:00:13.9]} 39. Rb8+ {[%clk 0:00:06.8]} 39... Ka4 {[%clk 0:00:14]}
40. Ra8+ {[%clk 0:00:06.3]} 40... Kb5 {[%clk 0:00:13.4]} 41. h5 {[%clk
0:00:06.8]} 41... Kc6 {[%clk 0:00:08.2]} 42. h6 {[%clk 0:00:07]} 42... Kb7
{[%clk 0:00:08.6]} 43. Ra4 {[%clk 0:00:06.3]} 43... Kc6 {[%clk 0:00:08.4]} 44.
h7 {[%clk 0:00:06.2]} 44... Kb5 {[%clk 0:00:08.3]} 45. Ra8 {[%clk 0:00:06.4]}
45... b3+ {[%clk 0:00:07.2]} 46. Kxb3 {[%clk 0:00:05.9]} 46... c2 {[%clk
0:00:07.9]} 47. Kxc2 {[%clk 0:00:05.9]} 47... f5 {[%clk 0:00:08.2]} 48. gxf5
{[%clk 0:00:05.4]} 48... Nb4+ {[%clk 0:00:06]} 49. Kd2 {[%clk 0:00:05.1]} 49...
exf5 {[%clk 0:00:06]} 50. Rb8+ {[%clk 0:00:04.9]} 50... Kc6 {[%clk 0:00:05.6]}
51. Rxb4 {[%clk 0:00:05.8]} 51... f4 {[%clk 0:00:05.8]} 52. h8=Q {[%clk
0:00:05.9]} 52... Kd5 {[%clk 0:00:06.7]} 53. Qd8+ {[%clk 0:00:05.7]} 53... Ke6
{[%clk 0:00:06.9]} 54. Qd6+ {[%clk 0:00:05.7]} 54... Kf5 {[%clk 0:00:07.8]} 55.
Qf6+ {[%clk 0:00:06.1]} 55... Kg4 {[%clk 0:00:08.3]} 56. e6 {[%clk 0:00:05.9]}
56... Kh3 {[%clk 0:00:09.2]} 57. Qh6+ {[%clk 0:00:05.3]} 57... Kg2 {[%clk
0:00:09.3]} 58. Qg5+ {[%clk 0:00:05.1]} 58... Kf1 {[%clk 0:00:09.4]} 59. Bc5
{[%clk 0:00:04.3]} 59... f3 {[%clk 0:00:09.5]} 60. Qf4 {[%clk 0:00:03.5]} 60...
Kg2 {[%clk 0:00:08.1]} 61. Qg4+ {[%clk 0:00:03]} 61... Kh1 {[%clk 0:00:07.1]}
62. Qg1# {[%clk 0:00:03.4]} 1-0

[Event "Early-Titled-Tuesday-Blitz-August-29-2023"]
[Site "Chess.com"]
[Date "2023.08.29"]
[Round "6"]
[White "parintele_chess"]
[Black "MdChess1734"]
[Result "0-1"]
[WhiteElo "2224"]
[BlackElo "2370"]
[TimeControl "180+1"]
[EndTime "9:07:30 PDT"]
[Termination "MdChess1734 won by checkmate"]

1. d4 {[%clk 0:01:27.8]} 1... Nf6 {[%clk 0:02:57]} 2. Bf4 {[%clk 0:01:28.7]}
2... e6 {[%clk 0:02:56.1]} 3. Nf3 {[%clk 0:01:28.7]} 3... b6 {[%clk 0:02:56.3]}
4. e3 {[%clk 0:01:29.1]} 4... Bb7 {[%clk 0:02:56.6]} 5. Be2 {[%clk 0:01:30]}
5... c5 {[%clk 0:02:56.2]} 6. O-O {[%clk 0:01:29.1]} 6... Be7 {[%clk 0:02:56.8]}
7. c4 {[%clk 0:01:28.9]} 7... Nh5 {[%clk 0:02:49.1]} 8. Be5 {[%clk 0:01:27.5]}
8... d6 {[%clk 0:02:48.1]} 9. Bg3 {[%clk 0:01:23.5]} 9... Nxg3 {[%clk
0:02:47.9]} 10. hxg3 {[%clk 0:01:24.4]} 10... O-O {[%clk 0:02:47.5]} 11. Nc3
{[%clk 0:01:23.5]} 11... Nd7 {[%clk 0:02:46.8]} 12. d5 {[%clk 0:01:22]} 12... e5
{[%clk 0:02:39.9]} 13. e4 {[%clk 0:01:20.4]} 13... Bf6 {[%clk 0:02:36.8]} 14.
Nb5 {[%clk 0:01:14.5]} 14... Qe7 {[%clk 0:02:34.5]} 15. a4 {[%clk 0:01:11.4]}
15... a6 {[%clk 0:02:33]} 16. Nc3 {[%clk 0:01:11.3]} 16... Qd8 {[%clk
0:02:29.5]} 17. Nd2 {[%clk 0:01:06.7]} 17... g6 {[%clk 0:02:27.1]} 18. Bg4
{[%clk 0:01:04.5]} 18... Bg7 {[%clk 0:02:26.2]} 19. f4 {[%clk 0:01:04.5]} 19...
f5 {[%clk 0:02:21.8]} 20. exf5 {[%clk 0:01:04.2]} 20... gxf5 {[%clk 0:02:21.5]}
21. Bh3 {[%clk 0:00:59.7]} 21... e4 {[%clk 0:02:19.9]} 22. Ndxe4 {[%clk
0:00:57.2]} 22... fxe4 {[%clk 0:02:16.3]} 23. Be6+ {[%clk 0:00:56.9]} 23... Kh8
{[%clk 0:02:15.7]} 24. Nxe4 {[%clk 0:00:57.2]} 24... Nf6 {[%clk 0:02:07.5]} 25.
Ng5 {[%clk 0:00:57.1]} 25... Qe7 {[%clk 0:02:06.7]} 26. Re1 {[%clk 0:00:56.4]}
26... Qc7 {[%clk 0:01:50.9]} 27. Qd3 {[%clk 0:00:54.8]} 27... Bc8 {[%clk
0:01:39.3]} 28. Qf5 {[%clk 0:00:40.7]} 28... h6 {[%clk 0:01:29.6]} 29. Kf2
{[%clk 0:00:34.6]} 29... Bd7 {[%clk 0:00:19.8]} 30. Rh1 {[%clk 0:00:27]} 30...
Be8 {[%clk 0:00:19.8]} 31. Rh4 {[%clk 0:00:18.1]} 31... h5 {[%clk 0:00:17.2]}
32. Rah1 {[%clk 0:00:17.9]} 32... Bh6 {[%clk 0:00:13.6]} 33. Ke2 {[%clk
0:00:07.4]} 33... Qg7 {[%clk 0:00:13.9]} 34. Qd3 {[%clk 0:00:04.2]} 34... Bg6
{[%clk 0:00:14]} 35. f5 {[%clk 0:00:03.8]} 35... Bxg5 {[%clk 0:00:12.4]} 36.
fxg6 {[%clk 0:00:03.1]} 36... Bxh4 {[%clk 0:00:12]} 37. Rxh4 {[%clk 0:00:02.2]}
37... Rae8 {[%clk 0:00:12.5]} 38. Kd2 {[%clk 0:00:01.9]} 38... Qh6+ {[%clk
0:00:12.7]} 39. Kc2 {[%clk 0:00:02.3]} 39... Kg7 {[%clk 0:00:13.4]} 40. Qc3
{[%clk 0:00:01.9]} 40... Qg5 {[%clk 0:00:13.6]} 41. Kb3 {[%clk 0:00:02]} 41...
b5 {[%clk 0:00:11.4]} 42. Rf4 {[%clk 0:00:02.1]} 42... Qxg6 {[%clk 0:00:11.1]}
43. Qf3 {[%clk 0:00:01.4]} 43... Kh8 {[%clk 0:00:11]} 44. Qf2 {[%clk 0:00:01.1]}
44... Nh7 {[%clk 0:00:10.7]} 45. Rxf8+ {[%clk 0:00:01.1]} 45... Rxf8 {[%clk
0:00:10.9]} 46. Qd2 {[%clk 0:00:02]} 46... Qxg3+ {[%clk 0:00:10.8]} 47. Ka2
{[%clk 0:00:01.7]} 47... bxc4 {[%clk 0:00:10.7]} 48. Qc2 {[%clk 0:00:02.1]}
48... Qb3+ {[%clk 0:00:10.7]} 49. Qxb3 {[%clk 0:00:01.5]} 49... cxb3+ {[%clk
0:00:11.4]} 50. Kxb3 {[%clk 0:00:02.4]} 50... Ng5 {[%clk 0:00:12]} 51. Ka3
{[%clk 0:00:03.3]} 51... Nxe6 {[%clk 0:00:12.1]} 52. dxe6 {[%clk 0:00:04.2]}
52... Re8 {[%clk 0:00:12.8]} 53. e7 {[%clk 0:00:04.9]} 53... Rxe7 {[%clk
0:00:13]} 54. b4 {[%clk 0:00:05.8]} 54... Re3+ {[%clk 0:00:13.1]} 55. Kb2 {[%clk
0:00:06.7]} 55... cxb4 {[%clk 0:00:13.7]} 56. a5 {[%clk 0:00:07.3]} 56... Rg3
{[%clk 0:00:13.9]} 57. Kc2 {[%clk 0:00:07.6]} 57... h4 {[%clk 0:00:14.2]} 58.
Kb2 {[%clk 0:00:08.5]} 58... Rxg2+ {[%clk 0:00:14.6]} 59. Kb3 {[%clk 0:00:09.4]}
59... h3 {[%clk 0:00:15.1]} 60. Kxb4 {[%clk 0:00:10.3]} 60... h2 {[%clk
0:00:15.5]} 61. Kc4 {[%clk 0:00:11.2]} 61... h1=Q {[%clk 0:00:15.7]} 62. Kd5
{[%clk 0:00:12.1]} 62... Qd1+ {[%clk 0:00:15.8]} 63. Kc6 {[%clk 0:00:13]} 63...
Rc2+ {[%clk 0:00:15.9]} 64. Kb7 {[%clk 0:00:13.9]} 64... Qb1+ {[%clk 0:00:15.5]}
65. Kxa6 {[%clk 0:00:14.8]} 65... Rc6+ {[%clk 0:00:15.5]} 66. Ka7 {[%clk
0:00:15.7]} 66... Rc7+ {[%clk 0:00:16.1]} 67. Ka6 {[%clk 0:00:15.3]} 67... Qb7#
{[%clk 0:00:16.7]} 0-1

[Event "Early-Titled-Tuesday-Blitz-August-29-2023"]
[Site "Chess.com"]
[Date "2023.08.29"]
[Round "6"]
[White "denizozen"]
[Black "twofoxniel"]
[Result "1-0"]
[WhiteElo "2861"]
[BlackElo "2660"]
[TimeControl "180+1"]
[EndTime "9:07:32 PDT"]
[Termination "denizozen won on time"]

1. e4 {[%clk 0:03:00.9]} 1... d5 {[%clk 0:02:59.6]} 2. exd5 {[%clk 0:03:01.4]}
2... Nf6 {[%clk 0:02:59.8]} 3. d4 {[%clk 0:03:01.3]} 3... Bg4 {[%clk 0:02:59.3]}
4. Bb5+ {[%clk 0:03:02]} 4... Nbd7 {[%clk 0:02:59.2]} 5. Be2 {[%clk 0:03:02.5]}
5... Bxe2 {[%clk 0:02:58.6]} 6. Qxe2 {[%clk 0:03:03]} 6... Nxd5 {[%clk
0:02:59.3]} 7. c4 {[%clk 0:03:03.3]} 7... N5f6 {[%clk 0:02:59.2]} 8. Nf3 {[%clk
0:03:00.6]} 8... c6 {[%clk 0:02:59.1]} 9. Nc3 {[%clk 0:02:58.5]} 9... e6 {[%clk
0:02:59.5]} 10. d5 {[%clk 0:02:55]} 10... Nc5 {[%clk 0:02:24.2]} 11. O-O {[%clk
0:02:34.1]} 11... cxd5 {[%clk 0:02:20]} 12. cxd5 {[%clk 0:02:34.6]} 12... Nxd5
{[%clk 0:02:15.5]} 13. Rd1 {[%clk 0:02:29.9]} 13... Be7 {[%clk 0:02:05.6]} 14.
Nxd5 {[%clk 0:02:24.3]} 14... exd5 {[%clk 0:02:06.5]} 15. Qb5+ {[%clk
0:02:17.2]} 15... Kf8 {[%clk 0:01:42]} 16. Be3 {[%clk 0:02:16.6]} 16... a6
{[%clk 0:01:41.3]} 17. Qb4 {[%clk 0:02:04.5]} 17... b6 {[%clk 0:01:27]} 18. Qd2
{[%clk 0:01:36.9]} 18... f6 {[%clk 0:01:19]} 19. Qxd5 {[%clk 0:01:14.6]} 19...
Qxd5 {[%clk 0:01:18.9]} 20. Rxd5 {[%clk 0:01:15.5]} 20... Kf7 {[%clk 0:01:19.6]}
21. Rad1 {[%clk 0:01:16]} 21... Rac8 {[%clk 0:01:13]} 22. b3 {[%clk 0:01:09.1]}
22... Rc7 {[%clk 0:01:08.8]} 23. g3 {[%clk 0:01:03.8]} 23... Rhc8 {[%clk
0:01:08.4]} 24. Kg2 {[%clk 0:01:02.6]} 24... b5 {[%clk 0:01:05.4]} 25. Bf4
{[%clk 0:00:55.7]} 25... Rc6 {[%clk 0:01:01.3]} 26. Nd4 {[%clk 0:00:54.5]} 26...
Rb6 {[%clk 0:01:00.8]} 27. Nf5 {[%clk 0:00:42.9]} 27... Bf8 {[%clk 0:01:01]} 28.
Rc1 {[%clk 0:00:40]} 28... Ke6 {[%clk 0:00:51.8]} 29. Ne3 {[%clk 0:00:18]} 29...
Rbc6 {[%clk 0:00:51.7]} 30. h4 {[%clk 0:00:12.7]} 30... h6 {[%clk 0:00:49.9]}
31. h5 {[%clk 0:00:12.9]} 31... Be7 {[%clk 0:00:43.8]} 32. Rdd1 {[%clk 0:00:12]}
32... Ne4 {[%clk 0:00:42.3]} 33. Rxc6+ {[%clk 0:00:11.5]} 33... Rxc6 {[%clk
0:00:43.2]} 34. g4 {[%clk 0:00:09.3]} 34... Bc5 {[%clk 0:00:40.4]} 35. Nf5
{[%clk 0:00:07.7]} 35... Nxf2 {[%clk 0:00:34.5]} 36. Nxg7+ {[%clk 0:00:08.2]}
36... Kf7 {[%clk 0:00:29.8]} 37. Rd7+ {[%clk 0:00:08.9]} 37... Kf8 {[%clk
0:00:30]} 38. Bxh6 {[%clk 0:00:06.9]} 38... Nxg4 {[%clk 0:00:30]} 39. Nf5+
{[%clk 0:00:05.5]} 39... Nxh6 {[%clk 0:00:29.3]} 40. Nxh6 {[%clk 0:00:06.4]}
40... Be3 {[%clk 0:00:22.8]} 41. Nf5 {[%clk 0:00:05.4]} 41... Bg5 {[%clk
0:00:22.6]} 42. h6 {[%clk 0:00:05.6]} 42... Bxh6 {[%clk 0:00:21.4]} 43. Nxh6
{[%clk 0:00:06.5]} 43... Rc2+ {[%clk 0:00:22.1]} 44. Kf3 {[%clk 0:00:06.8]}
44... Rxa2 {[%clk 0:00:23]} 45. Nf5 {[%clk 0:00:06.3]} 45... Ra3 {[%clk
0:00:23]} 46. Kg4 {[%clk 0:00:06.5]} 46... Rxb3 {[%clk 0:00:21.9]} 47. Kh5
{[%clk 0:00:07.2]} 47... Ke8 {[%clk 0:00:22.4]} 48. Ra7 {[%clk 0:00:07.1]} 48...
Ra3 {[%clk 0:00:22.3]} 49. Kg6 {[%clk 0:00:07.4]} 49... Kd8 {[%clk 0:00:21]} 50.
Kxf6 {[%clk 0:00:07.8]} 50... Kc8 {[%clk 0:00:21.6]} 51. Ke6 {[%clk 0:00:07.7]}
51... Kb8 {[%clk 0:00:22.1]} 52. Rh7 {[%clk 0:00:08]} 52... Rd3 {[%clk
0:00:20.6]} 53. Nd6 {[%clk 0:00:08.2]} 53... b4 {[%clk 0:00:20.5]} 54. Kd7
{[%clk 0:00:08.4]} 54... Ka7 {[%clk 0:00:19.6]} 55. Kc6+ {[%clk 0:00:08.8]}
55... Ka8 {[%clk 0:00:18.7]} 56. Nc4 {[%clk 0:00:06.1]} 56... Rc3 {[%clk
0:00:17.5]} 57. Kb6 {[%clk 0:00:06]} 1-0

[Event "Early-Titled-Tuesday-Blitz-August-29-2023"]
[Site "Chess.com"]
[Date "2023.08.29"]
[Round "6"]
[White "smilingice"]
[Black "GeorgiosSouleidis"]
[Result "0-1"]
[WhiteElo "2394"]
[BlackElo "2565"]
[TimeControl "180+1"]
[EndTime "9:07:32 PDT"]
[Termination "GeorgiosSouleidis won on time"]

1. e4 {[%clk 0:03:00.7]} 1... c5 {[%clk 0:02:55.8]} 2. Nf3 {[%clk 0:03:00.1]}
2... e6 {[%clk 0:02:55.9]} 3. c4 {[%clk 0:02:56.6]} 3... Nc6 {[%clk 0:02:55.5]}
4. d4 {[%clk 0:02:56]} 4... cxd4 {[%clk 0:02:54.4]} 5. Nxd4 {[%clk 0:02:56]}
5... Bc5 {[%clk 0:02:54.6]} 6. Nc2 {[%clk 0:02:53]} 6... Qb6 {[%clk 0:02:42.7]}
7. Qd2 {[%clk 0:02:34.7]} 7... Nf6 {[%clk 0:02:40]} 8. Nc3 {[%clk 0:02:34.5]}
8... Qc7 {[%clk 0:02:08.9]} 9. Be2 {[%clk 0:02:27.9]} 9... O-O {[%clk
0:02:08.5]} 10. O-O {[%clk 0:02:26.3]} 10... a6 {[%clk 0:02:09]} 11. a3 {[%clk
0:02:21.3]} 11... b6 {[%clk 0:02:05.3]} 12. b4 {[%clk 0:02:20.2]} 12... Be7
{[%clk 0:02:05.5]} 13. Bb2 {[%clk 0:02:20.4]} 13... Bb7 {[%clk 0:02:05.6]} 14.
Rac1 {[%clk 0:02:16]} 14... Rfd8 {[%clk 0:02:04.4]} 15. Ne3 {[%clk 0:02:11.4]}
15... Qf4 {[%clk 0:01:37.9]} 16. f3 {[%clk 0:02:01.2]} 16... a5 {[%clk
0:01:28.7]} 17. g3 {[%clk 0:01:56.3]} 17... Qh6 {[%clk 0:01:20]} 18. b5 {[%clk
0:01:46.1]} 18... Bc5 {[%clk 0:01:18.6]} 19. Nd1 {[%clk 0:01:37.1]} 19... Ne7
{[%clk 0:01:16.9]} 20. Kg2 {[%clk 0:01:12.5]} 20... d5 {[%clk 0:01:10.6]} 21.
cxd5 {[%clk 0:01:09.2]} 21... exd5 {[%clk 0:00:59.6]} 22. e5 {[%clk 0:01:09.5]}
22... d4 {[%clk 0:00:58.2]} 23. exf6 {[%clk 0:01:08]} 23... dxe3 {[%clk
0:00:58.3]} 24. Qc3 {[%clk 0:01:00.5]} 24... Nd5 {[%clk 0:00:55.1]} 25. Qe5
{[%clk 0:00:52.9]} 25... Nxf6 {[%clk 0:00:50.4]} 26. Bc4 {[%clk 0:00:48.2]}
26... Rd2+ {[%clk 0:00:48.4]} 27. Nf2 {[%clk 0:00:40.4]} 27... Rxf2+ {[%clk
0:00:40.8]} 28. Rxf2 {[%clk 0:00:34.9]} 28... exf2 {[%clk 0:00:41.1]} 29. Qc7
{[%clk 0:00:34.6]} 29... f1=Q+ {[%clk 0:00:24.3]} 30. Rxf1 {[%clk 0:00:32.2]}
30... Qd2+ {[%clk 0:00:21]} 31. Kh3 {[%clk 0:00:30.7]} 31... Bd5 {[%clk
0:00:20.6]} 32. Bxf6 {[%clk 0:00:26]} 32... gxf6 {[%clk 0:00:19.8]} 33. Bxd5
{[%clk 0:00:20.7]} 33... Qxd5 {[%clk 0:00:19.3]} 34. Re1 {[%clk 0:00:21.1]}
34... Qf5+ {[%clk 0:00:12]} 35. Kg2 {[%clk 0:00:20.5]} 35... Qc2+ {[%clk
0:00:12]} 36. Kh3 {[%clk 0:00:20.2]} 36... Qf5+ {[%clk 0:00:12.1]} 37. Kg2
{[%clk 0:00:20.2]} 37... Rc8 {[%clk 0:00:11.3]} 38. Qb7 {[%clk 0:00:19.1]} 38...
Bxa3 {[%clk 0:00:08.5]} 39. Re4 {[%clk 0:00:16.5]} 39... Rc2+ {[%clk 0:00:08.2]}
40. Kg1 {[%clk 0:00:12.2]} 40... Bc5+ {[%clk 0:00:08.3]} 41. Kf1 {[%clk
0:00:07.6]} 41... Qxf3+ {[%clk 0:00:08.5]} 42. Ke1 {[%clk 0:00:08]} 42... Qe2+
{[%clk 0:00:08.9]} 43. Rxe2 {[%clk 0:00:07.4]} 43... Rxe2+ {[%clk 0:00:05.9]}
44. Kxe2 {[%clk 0:00:07.8]} 44... a4 {[%clk 0:00:06.8]} 45. Kd3 {[%clk
0:00:08.5]} 45... a3 {[%clk 0:00:07.1]} 46. Kc2 {[%clk 0:00:09.3]} 46... Kg7
{[%clk 0:00:07.7]} 47. Kb3 {[%clk 0:00:08.2]} 47... Kg6 {[%clk 0:00:07.6]} 48.
Qe4+ {[%clk 0:00:08.5]} 48... Kg7 {[%clk 0:00:07.9]} 49. Qg4+ {[%clk 0:00:09.1]}
49... Kf8 {[%clk 0:00:08.4]} 50. h4 {[%clk 0:00:09.1]} 50... h6 {[%clk
0:00:07.5]} 51. h5 {[%clk 0:00:09.4]} 51... Be7 {[%clk 0:00:02]} 52. Qe2 {[%clk
0:00:04.2]} 52... Bc5 {[%clk 0:00:02]} 53. Kc4 {[%clk 0:00:04.5]} 53... Kg7
{[%clk 0:00:02.5]} 54. Kd5 {[%clk 0:00:04.8]} 54... Kf8 {[%clk 0:00:02.9]} 55.
Kc6 {[%clk 0:00:00.4]} 55... Kg7 {[%clk 0:00:03.4]} 0-1